fUST/lending_fUST_20240828
["ID","MTS","AMOUNT","RATE_DAILY","PERIOD"]
[336349323,1724783452977,-500.0,0.0001178,2]
[336349324,1724783452987,-500.0,0.0001178,2]
[336349325,1724783452996,-500.0,0.0001178,2]
[336349326,1724783453005,-500.0,0.0001178,2]
[336349327,1724783453015,-500.0,0.0001178,2]
[336349328,1724783453025,-1008.67,0.0001178,2]
[336349329,1724783453035,-500.0,0.0001178,2]
[336349330,1724783453045,-500.0,0.0001178,2]
[336349331,1724783453054,-500.0,0.0001178,2]
[336349332,1724783453064,-500.0,0.0001178,2]
[336349333,1724783453073,-158.63,0.0001178,2]
[336349334,1724783453083,-500.0,0.0001178,2]
[336349335,1724783453092,-500.0,0.0001178,2]
[336349336,1724783453102,-1090.85,0.0001178,2]
[336349337,1724783453112,-500.0,0.0001178,2]
[336349338,1724783453121,-975.59,0.0001178,2]
[336349339,1724783453131,-557.4459425,0.0001178,2]
[336349340,1724783453140,-1059.05,0.0001178,2]
[336349341,1724783453151,-500.0,0.0001178,2]
[336349342,1724783453161,-500.0,0.0001178,2]
[336349343,1724783453170,-500.0,0.0001178,2]
[336349344,1724783453179,-500.0,0.0001178,2]
[336349345,1724783453189,-247.82141301,0.0001178,2]
[336349346,1724783453550,-522.45511031,0.000103,2]
[336349347,1724783453559,-1100.76,0.00010958,2]
[336349348,1724783453568,-500.0,0.00010958,2]
[336349349,1724783453577,-500.0,0.00011232,2]
[336349350,1724783453587,-1100.76,0.00011232,2]
[336349351,1724783453596,-500.0,0.00011506,2]
[336349352,1724783453605,-1100.76,0.00011506,2]
[336349353,1724783453615,-252.17858699,0.0001178,2]
[336349354,1724783453624,-500.0,0.0001178,2]
[336349355,1724783453633,-500.0,0.0001178,2]
[336349356,1724783453642,-500.0,0.0001178,2]
[336349357,1724783453651,-500.0,0.0001178,2]
[336349358,1724783453660,-500.0,0.0001178,2]
[336349359,1724783453669,-500.0,0.0001178,2]
[336349360,1724783453679,-500.0,0.0001178,2]
[336349361,1724783453688,-500.0,0.0001178,2]
[336349362,1724783453697,-1100.76,0.0001178,2]
[336349363,1724783453706,-500.0,0.0001178,2]
[336349364,1724783453715,-500.0,0.00011821,2]
[336349365,1724783453725,-1000.0,0.00011821,2]
[336349366,1724783453734,-154.74645828,0.00011842,2]
[336349367,1724783453743,-500.0,0.00011899,2]
[336349368,1724783453753,-813.283194,0.000119,2]
[336349369,1724783453762,-813.283194,0.000119,2]
[336349370,1724783453771,-227.485469,0.000119,2]
[336349371,1724783453780,-227.485469,0.000119,2]
[336349372,1724783453791,-151.0,0.000119,2]
[336349373,1724783453801,-151.0,0.000119,2]
[336349374,1724783453811,-151.0,0.000119,2]
[336349375,1724783453822,-151.0,0.000119,2]
[336349376,1724783453831,-346.621447,0.000119,2]
[336349377,1724783453841,-346.621447,0.000119,2]
[336349378,1724783453851,-151.0,0.000119,2]
[336349379,1724783453869,-373.459825,0.000119,2]
[336349380,1724783453878,-373.459825,0.000119,2]
[336349381,1724783453890,-499.632707,0.000119,2]
[336349382,1724783453902,-499.632707,0.000119,2]
[336349383,1724783453914,-151.0,0.000119,2]
[336349384,1724783453924,-151.0,0.000119,2]
[336349385,1724783453936,-642354.123748,0.000119,2]
[336349386,1724783453948,-442.445292,0.000119,2]
[336349387,1724783453960,-442.445292,0.000119,2]
[336349388,1724783453971,-151.0,0.000119,2]
[336349389,1724783453981,-151.0,0.000119,2]
[336349390,1724783453993,-161.432437,0.000119,2]
[336349391,1724783454003,-161.432437,0.000119,2]
[336349392,1724783454015,-151.373133,0.000119,2]
[336349393,1724783454027,-569.906044,0.000119,2]
[336349394,1724783454038,-569.906044,0.000119,2]
[336349395,1724783454048,-151.0,0.000119,2]
[336349396,1724783454058,-151.0,0.000119,2]
[336349397,1724783454068,-151.0,0.000119,2]
[336349398,1724783454077,-836.458118,0.000119,2]
[336349399,1724783454087,-151.0,0.000119,2]
[336349400,1724783454097,-836.458118,0.000119,2]
[336349401,1724783454106,-151.0,0.000119,2]
[336349402,1724783454117,-151.0,0.000119,2]
[336349403,1724783454128,-662.231514,0.000119,2]
[336349404,1724783454138,-662.231514,0.000119,2]
[336349405,1724783454147,-413.110278,0.000119,2]
[336349406,1724783454157,-413.110278,0.000119,2]
[336349407,1724783454166,-151.0,0.000119,2]
[336349408,1724783454176,-1766.96117072,0.00012,2]
[336349409,1724783454185,-500.0,0.00012053,2]
[336349410,1724783454194,-500.0,0.00012054,2]
[336349411,1724783454203,-500.0,0.00012054,2]
[336349412,1724783454213,-574.03,0.00012054,2]
[336349413,1724783454222,-250.43,0.00012054,2]
[336349414,1724783454231,-500.0,0.00012054,2]
[336349415,1724783454240,-500.0,0.00012054,2]
[336349416,1724783454250,-500.0,0.00012054,2]
[336349417,1724783454260,-376.63,0.00012054,2]
[336349418,1724783454269,-500.0,0.00012054,2]
[336349419,1724783454279,-518.15,0.00012054,2]
[336349420,1724783454288,-500.0,0.00012054,2]
[336349421,1724783454298,-500.0,0.00012054,2]
[336349422,1724783454309,-500.0,0.00012054,2]
[336349423,1724783454320,-544.5,0.00012054,2]
[336349424,1724783454329,-500.0,0.00012054,2]
[336349425,1724783454338,-500.0,0.00012054,2]
[336349426,1724783454349,-500.0,0.00012054,2]
[336349427,1724783454360,-500.0,0.00012054,2]
[336349428,1724783454370,-500.0,0.00012054,2]
[336349429,1724783454381,-500.0,0.00012054,2]
[336349430,1724783454390,-540.12,0.00012054,2]
[336349431,1724783454399,-158.73,0.00012054,2]
[336349432,1724783454409,-500.0,0.00012054,2]
[336349433,1724783454418,-500.0,0.00012054,2]
[336349434,1724783454428,-500.0,0.00012054,2]
[336349435,1724783454437,-591.36,0.00012054,2]
[336349436,1724783454447,-500.0,0.00012054,2]
[336349437,1724783454457,-527.48,0.00012054,2]
[336349438,1724783454467,-500.0,0.00012054,2]
[336349439,1724783454477,-161.57346621,0.00012054,2]
[336349440,1724783454487,-500.0,0.00012054,2]
[336349441,1724783454498,-500.0,0.00012054,2]
[336349442,1724783454508,-500.0,0.00012054,2]
[336349443,1724783454519,-500.0,0.00012054,2]
[336349444,1724783454529,-500.0,0.00012054,2]
[336349445,1724783454541,-500.0,0.00012054,2]
[336349446,1724783454551,-500.0,0.00012054,2]
[336349447,1724783454562,-500.0,0.00012054,2]
[336349448,1724783454571,-500.0,0.00012054,2]
[336349449,1724783454582,-500.0,0.00012054,2]
[336349450,1724783454591,-500.0,0.00012054,2]
[336349451,1724783454600,-500.0,0.00012054,2]
[336349452,1724783454610,-500.0,0.00012054,2]
[336349453,1724783454619,-500.0,0.00012054,2]
[336349454,1724783454629,-500.0,0.00012054,2]
[336349455,1724783454639,-500.0,0.00012054,2]
[336349456,1724783454649,-500.0,0.00012054,2]
[336349457,1724783454660,-642.55,0.00012054,2]
[336349458,1724783454671,-500.0,0.00012054,2]
[336349459,1724783454681,-500.0,0.00012054,2]
[336349460,1724783454691,-738.24,0.00012054,2]
[336349461,1724783454702,-500.0,0.00012054,2]
[336349462,1724783454714,-500.0,0.00012054,2]
[336349463,1724783454726,-500.0,0.00012054,2]
[336349464,1724783454738,-500.0,0.00012054,2]
[336349465,1724783454748,-171.01978266,0.00012054,2]
[336349466,1724783454759,-418.56,0.00012054,2]
[336349467,1724783454769,-500.0,0.00012054,2]
[336349468,1724783454780,-500.0,0.00012054,2]
[336349469,1724783454791,-500.0,0.00012054,2]
[336349470,1724783454800,-500.0,0.00012054,2]
[336349471,1724783454810,-500.0,0.00012054,2]
[336349472,1724783454821,-647.01,0.00012054,2]
[336349473,1724783454831,-500.0,0.00012054,2]
[336349474,1724783454840,-500.0,0.00012054,2]
[336349475,1724783454850,-500.0,0.00012054,2]
[336349476,1724783454862,-500.0,0.00012054,2]
[336349477,1724783454872,-500.0,0.00012054,2]
[336349478,1724783454881,-500.0,0.00012054,2]
[336349479,1724783454892,-500.0,0.00012054,2]
[336349480,1724783454902,-206.66158407,0.00012054,2]
[336349481,1724783454912,-500.0,0.00012054,2]
[336349482,1724783454923,-500.0,0.00012054,2]
[336349483,1724783454933,-500.0,0.00012054,2]
[336349484,1724783454947,-500.0,0.00012054,2]
[336349485,1724783454958,-500.0,0.00012054,2]
[336349486,1724783454969,-500.0,0.00012054,2]
[336349487,1724783454980,-500.0,0.00012054,2]
[336349488,1724783454992,-202.87,0.00012054,2]
[336349489,1724783455003,-500.0,0.00012054,2]
[336349490,1724783455015,-500.0,0.00012054,2]
[336349491,1724783455026,-1072.98,0.00012054,2]
[336349492,1724783455035,-537.89,0.00012054,2]
[336349493,1724783455045,-657.77,0.00012054,2]
[336349494,1724783455054,-500.0,0.00012054,2]
[336349495,1724783455064,-500.0,0.00012054,2]
[336349496,1724783455073,-539.22,0.00012054,2]
[336349497,1724783455082,-500.0,0.00012054,2]
[336349498,1724783455091,-1580.47,0.00012054,2]
[336349499,1724783455101,-500.0,0.00012054,2]
[336349500,1724783455110,-500.0,0.00012054,2]
[336349501,1724783455120,-500.0,0.00012054,2]
[336349502,1724783455129,-500.0,0.00012054,2]
[336349503,1724783455139,-500.0,0.00012054,2]
[336349504,1724783455147,-10655.96,0.00012054,2]
[336349505,1724783455157,-500.0,0.00012054,2]
[336349506,1724783455166,-500.0,0.00012054,2]
[336349507,1724783455176,-500.0,0.00012054,2]
[336349508,1724783455185,-590.79,0.00012054,2]
[336349509,1724783455194,-500.0,0.00012054,2]
[336349510,1724783455203,-500.0,0.00012054,2]
[336349511,1724783455213,-500.0,0.00012054,2]
[336349512,1724783455222,-511.14,0.00012054,2]
[336349513,1724783455232,-500.0,0.00012054,2]
[336349514,1724783455242,-532.44,0.00012054,2]
[336349515,1724783455251,-500.0,0.00012054,2]
[336349516,1724783455266,-500.0,0.00012054,2]
[336349517,1724783455276,-500.0,0.00012054,2]
[336349518,1724783455286,-500.0,0.00012054,2]
[336349519,1724783455296,-500.0,0.00012054,2]
[336349520,1724783455305,-500.0,0.00012054,2]
[336349521,1724783455314,-500.0,0.00012054,2]
[336349522,1724783455324,-500.0,0.00012054,2]
[336349523,1724783455333,-500.0,0.00012054,2]
[336349524,1724783455342,-1262.16,0.00012054,2]
[336349525,1724783455351,-500.0,0.00012054,2]
[336349526,1724783455361,-500.0,0.00012054,2]
[336349527,1724783455370,-500.0,0.00012054,2]
[336349528,1724783455379,-500.0,0.00012054,2]
[336349529,1724783455390,-610.36,0.00012054,2]
[336349530,1724783455399,-500.0,0.00012054,2]
[336349531,1724783455408,-500.0,0.00012054,2]
[336349532,1724783455417,-507.2,0.00012054,2]
[336349533,1724783455427,-635.0,0.00012054,2]
[336349534,1724783455437,-155.24444629,0.00012054,2]
[336349535,1724783455448,-500.0,0.00012054,2]
[336349536,1724783455458,-500.0,0.00012054,2]
[336349537,1724783455468,-500.0,0.00012054,2]
[336349538,1724783455479,-500.0,0.00012054,2]
[336349539,1724783455489,-1008.67,0.00012054,2]
[336349540,1724783455499,-500.0,0.00012054,2]
[336349541,1724783455511,-500.0,0.00012054,2]
[336349542,1724783455522,-500.0,0.00012054,2]
[336349543,1724783455532,-500.0,0.00012054,2]
[336349544,1724783455541,-500.0,0.00012054,2]
[336349545,1724783455551,-500.0,0.00012054,2]
[336349546,1724783455560,-1090.85,0.00012054,2]
[336349547,1724783455569,-500.0,0.00012054,2]
[336349548,1724783455578,-975.59,0.00012054,2]
[336349549,1724783455587,-1059.05,0.00012054,2]
[336349550,1724783455597,-500.0,0.00012054,2]
[336349551,1724783455606,-500.0,0.00012054,2]
[336349552,1724783455615,-500.0,0.00012054,2]
[336349553,1724783455624,-500.0,0.00012054,2]
[336349554,1724783455634,-357.58121981,0.00012054,2]
[336349555,1724783455643,-500.0,0.00012054,2]
[336349556,1724783455654,-500.0,0.00012054,2]
[336349557,1724783455663,-500.0,0.00012054,2]
[336349558,1724783455673,-500.0,0.00012054,2]
[336349559,1724783455682,-500.0,0.00012054,2]
[336349560,1724783455691,-500.0,0.00012054,2]
[336349561,1724783455700,-500.0,0.00012054,2]
[336349562,1724783455710,-500.0,0.00012054,2]
[336349563,1724783455718,-500.0,0.00012054,2]
[336349564,1724783455727,-1100.76,0.00012054,2]
[336349565,1724783455737,-2588.38224278,0.00012091,2]
[336349566,1724783455747,-74.08281707,0.00012163,2]
[336349567,1724783457780,-339.93479136,0.00012163,2]
[336349568,1724783457791,-4760.38038494,0.00012163,2]
[336349569,1724783459550,-912.25524603,0.000103,2]
[336349570,1724783459562,-378.24475397,0.000103,2]
[336349571,1724783459944,-26.94211853,0.000103,2]
[336349572,1724783460012,-40.377063,0.000103,2]
[336349584,1724784217971,-273.37336231,7.832e-05,2]
[336349585,1724784217995,-2129.68953039,7.911e-05,2]
[336349586,1724784218020,-2714.82142664,8.521e-05,2]
[336349587,1724784218045,-495.34936838,8.883e-05,2]
[336349588,1724784218072,-250.0,9.011e-05,2]
[336349589,1724784218101,-250.0,9.036e-05,2]
[336349590,1724784218131,-250.0,9.061e-05,2]
[336349591,1724784218159,-250.0,9.085e-05,2]
[336349592,1724784218189,-250.0,9.11e-05,2]
[336349593,1724784218217,-250.0,9.135e-05,2]
[336349594,1724784218243,-250.0,9.16e-05,2]
[336349595,1724784218271,-250.0,9.184e-05,2]
[336349596,1724784218297,-250.0,9.209e-05,2]
[336349597,1724784218323,-250.0,9.234e-05,2]
[336349598,1724784218349,-250.0,9.258e-05,2]
[336349599,1724784218374,-300.0,9.266e-05,2]
[336349600,1724784218400,-24900.0,9.267e-05,2]
[336349605,1724784425349,-2253.7043396,8.956e-05,2]
[336349606,1724784447142,-22182.24338366,8.956e-05,2]
[336349607,1724784546178,-3264.07786861,8.777e-05,2]
[336349608,1724784546200,-3306.87170278,8.793e-05,2]
[336349609,1724784546224,-546.74672462,8.866e-05,2]
[336349610,1724784546247,-300.0,8.955e-05,2]
[336349611,1724784546270,-464.05227674,8.956e-05,2]
[336349612,1724784546293,-3278.52829485,8.956e-05,2]
[336349613,1724784562133,-3333.5976225,8.956e-05,2]
[336349614,1724784562157,-158.75068995,8.956e-05,2]
[336349615,1724784562180,-1309.99928252,8.956e-05,2]
[336349616,1724784562203,-250.0,9.283e-05,2]
[336349617,1724784562229,-250.0,9.308e-05,2]
[336349618,1724784562254,-250.0,9.333e-05,2]
[336349619,1724784562281,-250.0,9.357e-05,2]
[336349620,1724784562305,-250.0,9.382e-05,2]
[336349621,1724784562328,-250.0,9.407e-05,2]
[336349622,1724784562351,-250.0,9.431e-05,2]
[336349623,1724784562375,-250.0,9.456e-05,2]
[336349624,1724784562402,-221.79960877,9.481e-05,2]
[336349625,1724784565140,-28.20039123,9.481e-05,2]
[336349626,1724784565163,-154.59033561,9.524e-05,2]
[336349627,1724784565185,-1767.84535613,9.999e-05,2]
[336349628,1724784565208,-288.5284708,0.0001,2]
[336349629,1724784565233,-1522.77491131,0.0001,2]
[336349630,1724784565256,-414.01760843,0.0001,2]
[336349631,1724784565278,-2284.37692518,0.00010081,3]
[336349632,1724784565309,-252.39906694,0.0001026,2]
[336349633,1724784565331,-155.45570733,0.0001026,2]
[336349634,1724784565355,-1551.78627415,0.000103,2]
[336349635,1724784570142,-121.51804866,0.000103,2]
[336349636,1724784570166,-154.74467129,0.000105,2]
[336349637,1724784570194,-308.87016453,0.00010544,2]
[336349638,1724784570216,-8851.31811001,0.00010544,2]
[336349639,1724784570243,-174.9797707,0.00010544,2]
[336349640,1724784570267,-818.21912358,0.00010544,2]
[336349641,1724784570904,2284.37692518,9.999e-05,3]
[336349648,1724784574141,-180.94079709,0.00010739,2]
[336349649,1724784574164,-570.03577448,0.00010739,2]
[336349650,1724784574187,-629.437648,0.00010739,2]
[336349651,1724784574209,-320.53411242,0.00010739,2]
[336349652,1724784574234,-695.14803561,0.00010739,2]
[336349653,1724784574259,-307.65893703,0.00010856,2]
[336349654,1724784574282,-2050.22460653,0.00010957,2]
[336349655,1724784574632,154.59033561,9.429e-05,2]
[336349665,1724784611890,171.023314,0.00010053,2]
[336349666,1724784612114,171.023314,0.00010315,2]
[336349667,1724784612342,171.023314,0.00010577,2]
[336349712,1724784632991,-812.05632668,0.00010739,2]
[336349713,1724784633002,-266.22829307,0.00010856,2]
[336349714,1724784633012,-1386.40908955,0.00010856,2]
[336349715,1724784633027,-473.83415027,0.00010856,2]
[336349742,1724784639170,-1131.03307211,0.00010856,2]
[336349744,1724784639182,-5858.21372341,0.00010856,2]
[336349746,1724784639192,-209.81980082,0.00010957,2]
[336349748,1724784639202,-2986.3750789,0.00010958,2]
[336349750,1724784639212,-461.14459541,0.00010958,2]
[336349751,1724784639222,-500.0,0.00010958,2]
[336349752,1724784639234,-501.17789383,0.00010958,2]
[336349753,1724784639248,-500.0,0.00010958,2]
[336349754,1724784639258,-500.73416078,0.00010958,2]
[336349755,1724784639270,-500.0,0.00010958,2]
[336349756,1724784639281,-500.0,0.00010958,2]
[336349757,1724784639291,-500.0,0.00010958,2]
[336349758,1724784639303,-500.0,0.00010958,2]
[336349759,1724784639315,-500.0,0.00010958,2]
[336349760,1724784639327,-500.0,0.00010958,2]
[336349761,1724784639337,-500.0,0.00010958,2]
[336349762,1724784639346,-500.0,0.00010958,2]
[336349763,1724784639356,-500.0,0.00010958,2]
[336349764,1724784639367,-500.0,0.00010958,2]
[336349765,1724784639377,-500.0,0.00010958,2]
[336349766,1724784639387,-500.0,0.00010958,2]
[336349767,1724784639398,-500.0,0.00010958,2]
[336349768,1724784639408,-500.0,0.00010958,2]
[336349769,1724784639418,-500.0,0.00010958,2]
[336349770,1724784639428,-500.0,0.00010958,2]
[336349771,1724784639438,-501.44527772,0.00010958,2]
[336349772,1724784639449,-500.0,0.00010958,2]
[336349773,1724784639459,-500.0,0.00010958,2]
[336349774,1724784639469,-500.0,0.00010958,2]
[336349775,1724784639480,-500.0,0.00010958,2]
[336349776,1724784639490,-500.0,0.00010958,2]
[336349777,1724784639500,-500.0,0.00010958,2]
[336349778,1724784639510,-500.0,0.00010958,2]
[336349779,1724784639519,-500.0,0.00010958,2]
[336349780,1724784639529,-500.0,0.00010958,2]
[336349781,1724784639539,-500.0,0.00010958,2]
[336349782,1724784639549,-500.0,0.00010958,2]
[336349783,1724784639563,-500.0,0.00010958,2]
[336349784,1724784639574,-500.0,0.00010958,2]
[336349785,1724784639584,-500.0,0.00010958,2]
[336349786,1724784639595,-500.0,0.00010958,2]
[336349787,1724784639604,-500.0,0.00010958,2]
[336349788,1724784639614,-500.0,0.00010958,2]
[336349789,1724784639625,-551.68209085,0.00010958,2]
[336349790,1724784639636,-500.0,0.00010958,2]
[336349791,1724784639648,-500.0,0.00010958,2]
[336349792,1724784639659,-500.0,0.00010958,2]
[336349793,1724784639670,-500.0,0.00010958,2]
[336349794,1724784639680,-500.0,0.00010958,2]
[336349795,1724784639689,-500.0,0.00010958,2]
[336349796,1724784639699,-500.0,0.00010958,2]
[336349797,1724784639709,-500.0,0.00010958,2]
[336349798,1724784639720,-500.0,0.00010958,2]
[336349799,1724784639731,-500.0,0.00010958,2]
[336349800,1724784639743,-500.0,0.00010958,2]
[336349801,1724784639754,-500.0,0.00010958,2]
[336349802,1724784639764,-500.0,0.00010958,2]
[336349803,1724784639773,-500.0,0.00010958,2]
[336349804,1724784639784,-500.0,0.00010958,2]
[336349805,1724784639796,-500.0,0.00010958,2]
[336349806,1724784639807,-500.0,0.00010958,2]
[336349807,1724784639818,-500.0,0.00010958,2]
[336349808,1724784639830,-500.0,0.00010958,2]
[336349809,1724784639841,-500.0,0.00010958,2]
[336349810,1724784639851,-500.0,0.00010958,2]
[336349811,1724784639861,-500.0,0.00010958,2]
[336349812,1724784639870,-500.0,0.00010958,2]
[336349813,1724784639881,-500.0,0.00010958,2]
[336349814,1724784639892,-500.0,0.00010958,2]
[336349815,1724784639904,-500.0,0.00010958,2]
[336349816,1724784639915,-500.0,0.00010958,2]
[336349817,1724784639927,-500.0,0.00010958,2]
[336349818,1724784639936,-500.0,0.00010958,2]
[336349819,1724784639947,-500.0,0.00010958,2]
[336349820,1724784639956,-500.0,0.00010958,2]
[336349821,1724784639966,-500.0,0.00010958,2]
[336349822,1724784639976,-500.0,0.00010958,2]
[336349823,1724784639987,-500.0,0.00010958,2]
[336349824,1724784639996,-500.0,0.00010958,2]
[336349825,1724784640007,-500.0,0.00010958,2]
[336349826,1724784640016,-500.0,0.00010958,2]
[336349827,1724784640026,-500.0,0.00010958,2]
[336349828,1724784640038,-500.0,0.00010958,2]
[336349829,1724784640048,-500.0,0.00010958,2]
[336349830,1724784640059,-500.0,0.00010958,2]
[336349831,1724784640069,-500.0,0.00010958,2]
[336349832,1724784640081,-500.0,0.00010958,2]
[336349833,1724784640094,-505.76910244,0.00010958,2]
[336349834,1724784640105,-500.0,0.00010958,2]
[336349835,1724784640116,-500.0,0.00010958,2]
[336349836,1724784640127,-500.0,0.00010958,2]
[336349837,1724784640138,-500.0,0.00010958,2]
[336349838,1724784640152,-500.0,0.00010958,2]
[336349840,1724784640162,-500.0,0.00010958,2]
[336349841,1724784640172,-500.0,0.00010958,2]
[336349843,1724784640182,-500.0,0.00010958,2]
[336349844,1724784640194,-500.0,0.00010958,2]
[336349845,1724784640206,-917.3,0.00010958,2]
[336349846,1724784640217,-500.0,0.00010958,2]
[336349848,1724784640228,-500.0,0.00010958,2]
[336349849,1724784640240,-500.0,0.00010958,2]
[336349850,1724784640250,-500.0,0.00010958,2]
[336349851,1724784640271,-500.0,0.00010958,2]
[336349852,1724784640282,-500.0,0.00010958,2]
[336349853,1724784640292,-500.0,0.00010958,2]
[336349854,1724784640303,-299.0645899,0.00010958,2]
[336349856,1724784640313,-500.0,0.00010958,2]
[336349858,1724784640324,-500.0,0.00010958,2]
[336349859,1724784640334,-501.90320197,0.00010958,2]
[336349860,1724784640344,-500.0,0.00010958,2]
[336349861,1724784640354,-500.0,0.00010958,2]
[336349862,1724784640363,-500.0,0.00010958,2]
[336349863,1724784640373,-500.0,0.00010958,2]
[336349864,1724784640383,-500.0,0.00010958,2]
[336349865,1724784640393,-500.0,0.00010958,2]
[336349866,1724784640403,-500.0,0.00010958,2]
[336349867,1724784640414,-500.0,0.00010958,2]
[336349868,1724784640423,-500.0,0.00010958,2]
[336349869,1724784640434,-500.0,0.00010958,2]
[336349870,1724784640446,-500.0,0.00010958,2]
[336349871,1724784640456,-376.20376206,0.00010958,2]
[336349872,1724784640466,-500.0,0.00010958,2]
[336349873,1724784640477,-500.0,0.00010958,2]
[336349874,1724784640488,-500.0,0.00010958,2]
[336349875,1724784640500,-500.0,0.00010958,2]
[336349877,1724784640511,-500.0,0.00010958,2]
[336349878,1724784640520,-500.0,0.00010958,2]
[336349879,1724784640531,-500.0,0.00010958,2]
[336349880,1724784640541,-500.0,0.00010958,2]
[336349881,1724784640552,-500.0,0.00010958,2]
[336349882,1724784640562,-500.0,0.00010958,2]
[336349883,1724784640573,-514.40998013,0.00010958,2]
[336349884,1724784640584,-500.0,0.00010958,2]
[336349885,1724784640594,-500.0,0.00010958,2]
[336349886,1724784640605,-500.0,0.00010958,2]
[336349887,1724784640615,-500.0,0.00010958,2]
[336349888,1724784640629,-500.0,0.00010958,2]
[336349889,1724784640638,-300.84,0.00010958,2]
[336349890,1724784640648,-500.0,0.00010958,2]
[336349891,1724784640659,-500.0,0.00010958,2]
[336349892,1724784640669,-607.90773646,0.00010958,2]
[336349893,1724784640679,-500.0,0.00010958,2]
[336349895,1724784640689,-500.0,0.00010958,2]
[336349896,1724784640698,-500.0,0.00010958,2]
[336349898,1724784640709,-500.0,0.00010958,2]
[336349900,1724784640720,-500.0,0.00010958,2]
[336349902,1724784640730,-796.33,0.00010958,2]
[336349904,1724784640741,-500.0,0.00010958,2]
[336349906,1724784640750,-500.0,0.00010958,2]
[336349907,1724784640760,-500.0,0.00010958,2]
[336349909,1724784640770,-500.0,0.00010958,2]
[336349911,1724784640780,-500.0,0.00010958,2]
[336349913,1724784640792,-500.0,0.00010958,2]
[336349915,1724784640803,-500.0,0.00010958,2]
[336349917,1724784640812,-500.0,0.00010958,2]
[336349918,1724784640823,-500.0,0.00010958,2]
[336349919,1724784640833,-500.0,0.00010958,2]
[336349920,1724784640843,-500.0,0.00010958,2]
[336349921,1724784640853,-500.0,0.00010958,2]
[336349922,1724784640866,-500.0,0.00010958,2]
[336349923,1724784640877,-500.0,0.00010958,2]
[336349924,1724784640888,-500.0,0.00010958,2]
[336349926,1724784640900,-500.0,0.00010958,2]
[336349927,1724784640911,-500.0,0.00010958,2]
[336349928,1724784640923,-551.14639096,0.00010958,2]
[336349929,1724784640934,-500.0,0.00010958,2]
[336349930,1724784640946,-500.0,0.00010958,2]
[336349931,1724784640956,-433.06821957,0.00010958,2]
[336349932,1724784640966,-500.0,0.00010958,2]
[336349933,1724784640977,-500.0,0.00010958,2]
[336349934,1724784640987,-500.0,0.00010958,2]
[336349935,1724784640999,-500.0,0.00010958,2]
[336349936,1724784641009,-500.0,0.00010958,2]
[336349937,1724784641019,-500.0,0.00010958,2]
[336349938,1724784641265,-501.49289868,0.00010958,2]
[336349939,1724784641276,-500.0,0.00010958,2]
[336349940,1724784641288,-500.0,0.00010958,2]
[336349941,1724784641298,-500.0,0.00010958,2]
[336349942,1724784641308,-500.0,0.00010958,2]
[336349943,1724784641318,-500.0,0.00010958,2]
[336349944,1724784641329,-500.0,0.00010958,2]